[Event "*** SCC Grand Prix: Titled Tuesday Blitz"]
[Site "Chess.com"]
[Date "2020.08.11"]
[Round "2"]
[White "GiorgianBarbosa"]
[Black "pavelalexandru07"]
[Result "0-1"]
[WhiteElo "2402"]
[BlackElo "2208"]
[TimeControl "180+1"]
[EndTime "10:19:25 PDT"]
[Termination "pavelalexandru07 won by resignation"]

1. c4 {[%clk 0:03:00.9]} 1... Nf6 {[%clk 0:02:59.6]} 2. g3 {[%clk 0:02:59.6]}
2... c5 {[%clk 0:02:57.5]} 3. Bg2 {[%clk 0:02:49.2]} 3... g6 {[%clk 0:02:53.8]}
4. Nc3 {[%clk 0:02:49.1]} 4... Bg7 {[%clk 0:02:53.8]} 5. b3 {[%clk 0:02:49.3]}
5... O-O {[%clk 0:02:53.9]} 6. Bb2 {[%clk 0:02:49.8]} 6... Nc6 {[%clk 0:02:54]}
7. Nf3 {[%clk 0:02:49.9]} 7... e6 {[%clk 0:02:52.1]} 8. d4 {[%clk 0:02:49.4]}
8... Qa5 {[%clk 0:02:25.7]} 9. O-O {[%clk 0:02:46.5]} 9... cxd4 {[%clk
0:02:22.3]} 10. Nxd4 {[%clk 0:02:43.7]} 10... Nxd4 {[%clk 0:02:22.1]} 11. Qxd4
{[%clk 0:02:44.6]} 11... Nd5 {[%clk 0:02:09.4]} 12. Qxg7+ {[%clk 0:02:34.3]}
12... Kxg7 {[%clk 0:02:08.2]} 13. Nxd5+ {[%clk 0:02:35.2]} 13... f6 {[%clk
0:01:57.8]} 14. Nf4 {[%clk 0:02:29.9]} 14... d6 {[%clk 0:01:42.1]} 15. g4 {[%clk
0:02:24.2]} 15... e5 {[%clk 0:01:41.9]} 16. Nd5 {[%clk 0:02:22.9]} 16... Bxg4
{[%clk 0:01:41.4]} 17. e3 {[%clk 0:02:15.2]} 17... Be6 {[%clk 0:01:33.4]} 18.
Bc3 {[%clk 0:02:14.3]} 18... Qd8 {[%clk 0:01:31.1]} 19. Rad1 {[%clk 0:02:13.2]}
19... Rc8 {[%clk 0:01:26.1]} 20. Rd2 {[%clk 0:02:09.5]} 20... Qd7 {[%clk
0:01:24.9]} 21. Rfd1 {[%clk 0:02:08.9]} 21... Bg4 {[%clk 0:01:21.2]} 22. Re1
{[%clk 0:01:52.5]} 22... Bh3 {[%clk 0:01:04.2]} 23. f4 {[%clk 0:01:29.2]} 23...
Qg4 {[%clk 0:00:54.9]} 24. a4 {[%clk 0:01:22.9]} 24... Rce8 {[%clk 0:00:43]} 25.
Rf2 {[%clk 0:01:19.2]} 25... exf4 {[%clk 0:00:30.1]} 26. Nxf4 {[%clk 0:01:20.1]}
26... Bxg2 {[%clk 0:00:30.1]} 27. Rxg2 {[%clk 0:01:21]} 27... Qf5 {[%clk
0:00:27.9]} 28. Nd5 {[%clk 0:01:17.6]} 28... Qd3 {[%clk 0:00:27.3]} 29. Bd4
{[%clk 0:01:09.8]} 29... Re4 {[%clk 0:00:24.2]} 30. Bxa7 {[%clk 0:01:03.2]}
30... Qxb3 {[%clk 0:00:23.2]} 31. Bd4 {[%clk 0:00:53.5]} 31... Qxc4 {[%clk
0:00:22.9]} 32. Nxf6 {[%clk 0:00:54]} 32... Rxf6 {[%clk 0:00:22.9]} 33. Rf2
{[%clk 0:00:53.9]} 33... Re6 {[%clk 0:00:22.9]} 34. Ref1 {[%clk 0:00:53.1]}
34... Qxa4 {[%clk 0:00:15.3]} 35. Bxf6+ {[%clk 0:00:50.2]} 35... Kh6 {[%clk
0:00:12.6]} 36. Rf4 {[%clk 0:00:45.6]} 36... Re4 {[%clk 0:00:02.3]} 37. R4f3
{[%clk 0:00:46]} 37... Rg4+ {[%clk 0:00:02]} 38. Kh1 {[%clk 0:00:45.1]} 38...
Qe4 {[%clk 0:00:01.4]} 39. Bd4 {[%clk 0:00:38.7]} 39... d5 {[%clk 0:00:01.6]}
40. Rf2 {[%clk 0:00:37.5]} 40... b5 {[%clk 0:00:01.7]} 41. h3 {[%clk 0:00:37.3]}
41... Rg3 {[%clk 0:00:01.9]} 42. Kh2 {[%clk 0:00:24]} 42... Rxf3 {[%clk
0:00:02.8]} 43. Rg2 {[%clk 0:00:24.5]} 43... Rxe3 {[%clk 0:00:02.7]} 44. Bf6
{[%clk 0:00:20.5]} 44... Qxg2+ {[%clk 0:00:02.3]} 45. Kxg2 {[%clk 0:00:20]}
45... Re4 {[%clk 0:00:02.8]} 46. h4 {[%clk 0:00:20.3]} 46... g5 {[%clk 0:00:03]}
47. Bxg5+ {[%clk 0:00:21.2]} 47... Kg6 {[%clk 0:00:03.3]} 48. Kf3 {[%clk
0:00:22.1]} 48... h6 {[%clk 0:00:03.7]} 49. Bd8 {[%clk 0:00:22]} 49... b4 {[%clk
0:00:04.2]} 50. Ba5 {[%clk 0:00:21.5]} 50... b3 {[%clk 0:00:04.6]} 51. Bc3
{[%clk 0:00:21.5]} 51... Rc4 {[%clk 0:00:04.8]} 52. Be5 {[%clk 0:00:21.1]} 52...
Rc2 {[%clk 0:00:05.3]} 53. Ke3 {[%clk 0:00:20.5]} 53... b2 {[%clk 0:00:05.8]}
54. Kd3 {[%clk 0:00:21.2]} 54... b1=Q {[%clk 0:00:05.5]} 0-1

[Event "*** SCC Grand Prix: Titled Tuesday Blitz"]
[Site "Chess.com"]
[Date "2020.08.11"]
[Round "2"]
[White "meoluoi91"]
[Black "youngKID"]
[Result "0-1"]
[WhiteElo "2490"]
[BlackElo "2731"]
[TimeControl "180+1"]
[EndTime "10:19:26 PDT"]
[Termination "youngKID won on time"]

1. d4 {[%clk 0:03:00.9]} 1... Nf6 {[%clk 0:02:59.3]} 2. Nf3 {[%clk 0:02:59.9]}
2... e6 {[%clk 0:02:58.4]} 3. e3 {[%clk 0:02:59.1]} 3... b6 {[%clk 0:02:57.1]}
4. Bd3 {[%clk 0:02:58.5]} 4... Bb7 {[%clk 0:02:57.5]} 5. O-O {[%clk 0:02:58.7]}
5... Be7 {[%clk 0:02:52.8]} 6. Qe2 {[%clk 0:02:58.6]} 6... d5 {[%clk 0:02:52.6]}
7. c4 {[%clk 0:02:56.5]} 7... O-O {[%clk 0:02:51.9]} 8. Nc3 {[%clk 0:02:55.5]}
8... c5 {[%clk 0:02:51.7]} 9. cxd5 {[%clk 0:02:44.3]} 9... exd5 {[%clk
0:02:36.1]} 10. Ne5 {[%clk 0:02:42.4]} 10... Nc6 {[%clk 0:02:31.7]} 11. Nxc6
{[%clk 0:02:23.1]} 11... Bxc6 {[%clk 0:02:32.6]} 12. Rd1 {[%clk 0:02:01.6]}
12... c4 {[%clk 0:02:29.6]} 13. Bc2 {[%clk 0:02:00.2]} 13... b5 {[%clk
0:02:29.8]} 14. e4 {[%clk 0:01:55.1]} 14... b4 {[%clk 0:02:04.4]} 15. exd5
{[%clk 0:01:53.9]} 15... Nxd5 {[%clk 0:02:05.3]} 16. Ne4 {[%clk 0:01:54]} 16...
Rc8 {[%clk 0:01:37]} 17. Qh5 {[%clk 0:01:16.8]} 17... f5 {[%clk 0:01:22.7]} 18.
Ng5 {[%clk 0:01:13.6]} 18... Bxg5 {[%clk 0:01:22.5]} 19. Bxg5 {[%clk 0:01:13.5]}
19... Qd7 {[%clk 0:01:19.2]} 20. Re1 {[%clk 0:01:10.3]} 20... a5 {[%clk
0:01:05.4]} 21. Qh3 {[%clk 0:01:07.2]} 21... Rf7 {[%clk 0:00:39]} 22. Re5 {[%clk
0:01:06.3]} 22... Rcf8 {[%clk 0:00:38.8]} 23. Rae1 {[%clk 0:01:03.6]} 23... h6
{[%clk 0:00:30.5]} 24. Bc1 {[%clk 0:00:53]} 24... a4 {[%clk 0:00:27.8]} 25. Re6
{[%clk 0:00:43.5]} 25... b3 {[%clk 0:00:27.7]} 26. axb3 {[%clk 0:00:43.2]} 26...
axb3 {[%clk 0:00:28.6]} 27. Bb1 {[%clk 0:00:43.1]} 27... Rf6 {[%clk 0:00:29]}
28. R6e5 {[%clk 0:00:40.3]} 28... R6f7 {[%clk 0:00:21]} 29. Re6 {[%clk
0:00:35.5]} 29... Rf6 {[%clk 0:00:20.8]} 30. R6e5 {[%clk 0:00:35.8]} 30... R8f7
{[%clk 0:00:19.9]} 31. Qh5 {[%clk 0:00:28]} 31... Nb4 {[%clk 0:00:15.9]} 32. Bd2
{[%clk 0:00:18.8]} 32... Nc2 {[%clk 0:00:15.4]} 33. Bxc2 {[%clk 0:00:17.9]}
33... bxc2 {[%clk 0:00:16.3]} 34. Bc3 {[%clk 0:00:15.7]} 34... f4 {[%clk
0:00:10.6]} 35. Qe2 {[%clk 0:00:13.5]} 35... f3 {[%clk 0:00:10]} 36. Qxc4 {[%clk
0:00:12]} 36... fxg2 {[%clk 0:00:08.2]} 37. d5 {[%clk 0:00:09.6]} 37... Bb5
{[%clk 0:00:08.6]} 38. Qe4 {[%clk 0:00:02.7]} 38... Rxf2 {[%clk 0:00:08.4]} 0-1

[Event "*** SCC Grand Prix: Titled Tuesday Blitz"]
[Site "Chess.com"]
[Date "2020.08.11"]
[Round "2"]
[White "Alexander_Zubov"]
[Black "Fh2411"]
[Result "0-1"]
[WhiteElo "2815"]
[BlackElo "2565"]
[TimeControl "180+1"]
[EndTime "10:19:28 PDT"]
[Termination "Fh2411 won by resignation"]

1. d4 {[%clk 0:03:00.9]} 1... d5 {[%clk 0:02:59.8]} 2. Nf3 {[%clk 0:03:01]} 2...
c6 {[%clk 0:03:00.7]} 3. c4 {[%clk 0:03:01.3]} 3... Nf6 {[%clk 0:03:00.7]} 4.
Qb3 {[%clk 0:03:01.8]} 4... Qb6 {[%clk 0:02:55.4]} 5. Nc3 {[%clk 0:03:01.3]}
5... Qxb3 {[%clk 0:02:53]} 6. axb3 {[%clk 0:03:00.9]} 6... Nbd7 {[%clk
0:02:49.1]} 7. Bf4 {[%clk 0:02:58]} 7... g6 {[%clk 0:02:46.3]} 8. e3 {[%clk
0:02:54.3]} 8... Bg7 {[%clk 0:02:46]} 9. b4 {[%clk 0:02:51.5]} 9... dxc4 {[%clk
0:02:39.7]} 10. Bxc4 {[%clk 0:02:50.9]} 10... Nb6 {[%clk 0:02:40.2]} 11. Bb3
{[%clk 0:02:51.4]} 11... Bd7 {[%clk 0:02:31.9]} 12. Ra5 {[%clk 0:02:46.7]} 12...
O-O {[%clk 0:02:21.4]} 13. b5 {[%clk 0:02:33]} 13... cxb5 {[%clk 0:01:36.6]} 14.
Nxb5 {[%clk 0:02:32]} 14... Bxb5 {[%clk 0:01:36.6]} 15. Rxb5 {[%clk 0:02:31.6]}
15... e6 {[%clk 0:01:36.9]} 16. Bd6 {[%clk 0:02:11.3]} 16... Rfc8 {[%clk
0:01:36.1]} 17. O-O {[%clk 0:02:08.2]} 17... Bf8 {[%clk 0:01:28.4]} 18. Be5
{[%clk 0:02:02.3]} 18... Nfd7 {[%clk 0:01:28]} 19. Bg3 {[%clk 0:02:01.1]} 19...
a6 {[%clk 0:01:26.4]} 20. Ra5 {[%clk 0:02:01.3]} 20... Bb4 {[%clk 0:01:25.1]}
21. Ra2 {[%clk 0:02:00.8]} 21... Rc6 {[%clk 0:01:21.2]} 22. Ne1 {[%clk 0:01:42]}
22... Rac8 {[%clk 0:01:06.5]} 23. Nd3 {[%clk 0:01:41.4]} 23... Bd6 {[%clk
0:01:02.9]} 24. Rd1 {[%clk 0:01:33.1]} 24... Kf8 {[%clk 0:00:56.9]} 25. Kf1
{[%clk 0:01:32]} 25... Bxg3 {[%clk 0:00:55.8]} 26. hxg3 {[%clk 0:01:31.8]} 26...
Ke7 {[%clk 0:00:56.7]} 27. Ke2 {[%clk 0:01:30.7]} 27... h5 {[%clk 0:00:53.2]}
28. e4 {[%clk 0:01:27]} 28... Nc4 {[%clk 0:00:43.7]} 29. Ba4 {[%clk 0:01:22.9]}
29... b5 {[%clk 0:00:43]} 30. Bb3 {[%clk 0:01:22.4]} 30... a5 {[%clk 0:00:41.4]}
31. Raa1 {[%clk 0:01:11.5]} 31... a4 {[%clk 0:00:40.6]} 32. Ba2 {[%clk
0:01:11.8]} 32... R6c7 {[%clk 0:00:34]} 33. Rac1 {[%clk 0:01:08.2]} 33... Ndb6
{[%clk 0:00:28.1]} 34. Rc2 {[%clk 0:01:04.9]} 34... Nd6 {[%clk 0:00:26.4]} 35.
Rxc7+ {[%clk 0:01:02]} 35... Rxc7 {[%clk 0:00:27.3]} 36. f3 {[%clk 0:01:02.4]}
36... Rc2+ {[%clk 0:00:26.7]} 37. Rd2 {[%clk 0:01:02.5]} 37... Rxd2+ {[%clk
0:00:26.8]} 38. Kxd2 {[%clk 0:01:03.4]} 38... f5 {[%clk 0:00:24.5]} 39. Nc5
{[%clk 0:01:02.3]} 39... Ndc4+ {[%clk 0:00:22.5]} 40. Kc3 {[%clk 0:01:02]} 40...
Ne3 {[%clk 0:00:22.2]} 41. Bxe6 {[%clk 0:00:58.7]} 41... fxe4 {[%clk 0:00:21.4]}
42. fxe4 {[%clk 0:00:59.6]} 42... Nxg2 {[%clk 0:00:21.6]} 43. Bh3 {[%clk
0:00:55.7]} 43... Ne3 {[%clk 0:00:19.6]} 44. Nd3 {[%clk 0:00:52.3]} 44... Nbc4
{[%clk 0:00:19.5]} 45. Kb4 {[%clk 0:00:50.3]} 45... Nd6 {[%clk 0:00:19.5]} 46.
e5 {[%clk 0:00:49.5]} 46... Ndf5 {[%clk 0:00:20.1]} 47. Kc5 {[%clk 0:00:48.6]}
47... Nxg3 {[%clk 0:00:19.2]} 48. d5 {[%clk 0:00:49.2]} 48... Nxd5 {[%clk
0:00:18.5]} 49. Kxd5 {[%clk 0:00:49.2]} 49... g5 {[%clk 0:00:19.4]} 50. Nb4
{[%clk 0:00:47.6]} 50... g4 {[%clk 0:00:19.4]} 51. Nc6+ {[%clk 0:00:48.4]} 51...
Ke8 {[%clk 0:00:18.4]} 52. Bg2 {[%clk 0:00:46.6]} 52... h4 {[%clk 0:00:18.4]}
53. Kd6 {[%clk 0:00:44.6]} 53... Nf5+ {[%clk 0:00:18.3]} 54. Ke6 {[%clk
0:00:42.5]} 54... h3 {[%clk 0:00:18.8]} 55. Be4 {[%clk 0:00:40.9]} 55... Ng7+
{[%clk 0:00:17.8]} 56. Kf6 {[%clk 0:00:40.7]} 56... Nh5+ {[%clk 0:00:18]} 57.
Kg5 {[%clk 0:00:41.3]} 57... g3 {[%clk 0:00:17.6]} 58. Nd4 {[%clk 0:00:39.8]}
58... g2 {[%clk 0:00:16.2]} 59. Bxg2 {[%clk 0:00:39.2]} 59... hxg2 {[%clk
0:00:16]} 60. Nf3 {[%clk 0:00:39.6]} 60... Ng3 {[%clk 0:00:16]} 61. Ng1 {[%clk
0:00:38.3]} 61... b4 {[%clk 0:00:15.2]} 62. Kf4 {[%clk 0:00:39.2]} 62... a3
{[%clk 0:00:15.2]} 63. bxa3 {[%clk 0:00:39.6]} 63... bxa3 {[%clk 0:00:16.1]} 64.
Kxg3 {[%clk 0:00:40.1]} 64... a2 {[%clk 0:00:16.6]} 65. Kxg2 {[%clk 0:00:40.7]}
65... a1=Q {[%clk 0:00:16.8]} 66. Nf3 {[%clk 0:00:41.6]} 66... Qa4 {[%clk
0:00:15.1]} 67. Kg3 {[%clk 0:00:42.5]} 67... Qe4 {[%clk 0:00:15.5]} 0-1

[Event "*** SCC Grand Prix: Titled Tuesday Blitz"]
[Site "Chess.com"]
[Date "2020.08.11"]
[Round "2"]
[White "DrMamaliga"]
[Black "Unknown_IM"]
[Result "0-1"]
[WhiteElo "2169"]
[BlackElo "2406"]
[TimeControl "180+1"]
[EndTime "10:19:32 PDT"]
[Termination "Unknown_IM won by resignation"]

1. c4 {[%clk 0:03:00.9]} 1... c5 {[%clk 0:02:59.6]} 2. Nf3 {[%clk 0:03:00]} 2...
Nf6 {[%clk 0:02:59.1]} 3. Nc3 {[%clk 0:02:59.7]} 3... Nc6 {[%clk 0:02:59.4]} 4.
e3 {[%clk 0:03:00.1]} 4... g6 {[%clk 0:02:59.3]} 5. d4 {[%clk 0:03:00.3]} 5...
cxd4 {[%clk 0:02:59.8]} 6. exd4 {[%clk 0:03:01.2]} 6... d5 {[%clk 0:03:00.2]} 7.
cxd5 {[%clk 0:02:55]} 7... Nxd5 {[%clk 0:03:01.1]} 8. Bc4 {[%clk 0:02:51.9]}
8... Nxc3 {[%clk 0:03:01.4]} 9. bxc3 {[%clk 0:02:51.8]} 9... Bg7 {[%clk
0:03:01.1]} 10. O-O {[%clk 0:02:51.7]} 10... O-O {[%clk 0:03:01.6]} 11. Re1
{[%clk 0:02:48.9]} 11... Bg4 {[%clk 0:03:00.9]} 12. h3 {[%clk 0:02:48.2]} 12...
Bxf3 {[%clk 0:02:51.1]} 13. Qxf3 {[%clk 0:02:48.1]} 13... Nxd4 {[%clk
0:02:51.2]} 14. cxd4 {[%clk 0:02:39.5]} 14... Qxd4 {[%clk 0:02:52.1]} 15. Rb1
{[%clk 0:02:25.1]} 15... Qxc4 {[%clk 0:02:25.3]} 16. Rxe7 {[%clk 0:02:17.8]}
16... Rae8 {[%clk 0:02:15.6]} 17. Ba3 {[%clk 0:01:31.2]} 17... Qxa2 {[%clk
0:01:54.9]} 18. Rbxb7 {[%clk 0:01:27.8]} 18... Rxe7 {[%clk 0:01:50]} 19. Bxe7
{[%clk 0:01:25.6]} 19... Re8 {[%clk 0:01:50]} 20. Bc5 {[%clk 0:01:18.9]} 20...
a5 {[%clk 0:01:46.5]} 21. Qc6 {[%clk 0:01:16.5]} 21... Qe2 {[%clk 0:01:35.5]}
22. Be3 {[%clk 0:01:03.6]} 22... Rf8 {[%clk 0:00:58.5]} 23. Qd5 {[%clk
0:01:02.6]} 23... a4 {[%clk 0:00:38.5]} 24. Ra7 {[%clk 0:01:01.5]} 24... Qe1+
{[%clk 0:00:15.8]} 25. Kh2 {[%clk 0:01:00.9]} 25... Qa1 {[%clk 0:00:10.4]} 26.
Bc5 {[%clk 0:00:58]} 26... Qe5+ {[%clk 0:00:10.4]} 27. Qxe5 {[%clk 0:00:54.9]}
27... Bxe5+ {[%clk 0:00:11.3]} 28. g3 {[%clk 0:00:55.3]} 28... Rc8 {[%clk
0:00:12.2]} 29. Be3 {[%clk 0:00:40.4]} 29... Rc4 {[%clk 0:00:11.5]} 30. Bh6
{[%clk 0:00:40.5]} 30... f5 {[%clk 0:00:09.9]} 31. Re7 {[%clk 0:00:23.2]} 31...
Bb2 {[%clk 0:00:09.8]} 32. Re8+ {[%clk 0:00:14.5]} 32... Kf7 {[%clk 0:00:09.2]}
33. Ra8 {[%clk 0:00:13.6]} 33... a3 {[%clk 0:00:09]} 34. Bf4 {[%clk 0:00:13.5]}
34... Ke6 {[%clk 0:00:08.7]} 35. Ra6+ {[%clk 0:00:12.9]} 35... Kd5 {[%clk
0:00:08.5]} 36. Bd6 {[%clk 0:00:13.2]} 36... Rc6 {[%clk 0:00:07.3]} 37. Rxa3
{[%clk 0:00:09.1]} 37... Kxd6 {[%clk 0:00:03.6]} 38. Rb3 {[%clk 0:00:08.9]}
38... Bd4 {[%clk 0:00:03]} 39. Rd3 {[%clk 0:00:09.1]} 39... Kd5 {[%clk
0:00:03.4]} 40. Kg2 {[%clk 0:00:09.6]} 40... Rc4 {[%clk 0:00:04]} 41. Rd2 {[%clk
0:00:09.6]} 41... Kc5 {[%clk 0:00:04.6]} 42. Ra2 {[%clk 0:00:09.4]} 42... Rc3
{[%clk 0:00:04.9]} 43. Kf1 {[%clk 0:00:06.3]} 43... Kc4 {[%clk 0:00:05.8]} 44.
Ra4+ {[%clk 0:00:06.2]} 44... Kd3 {[%clk 0:00:05.9]} 45. Ra8 {[%clk 0:00:07.1]}
45... Rc1+ {[%clk 0:00:06.4]} 46. Kg2 {[%clk 0:00:07.1]} 46... Rc2 {[%clk
0:00:07.1]} 47. Rb8 {[%clk 0:00:05.8]} 47... Rxf2+ {[%clk 0:00:05.9]} 48. Kh1
{[%clk 0:00:06.7]} 48... Ke4 {[%clk 0:00:05.4]} 49. Rb7 {[%clk 0:00:05.8]} 49...
Kf3 {[%clk 0:00:05.3]} 0-1

[Event "*** SCC Grand Prix: Titled Tuesday Blitz"]
[Site "Chess.com"]
[Date "2020.08.11"]
[Round "2"]
[White "Alindsay211"]
[Black "Azoulas1"]
[Result "1-0"]
[WhiteElo "2359"]
[BlackElo "2001"]
[TimeControl "180+1"]
[EndTime "10:19:32 PDT"]
[Termination "Alindsay211 won by resignation"]

1. d4 {[%clk 0:03:00.9]} 1... Nf6 {[%clk 0:02:58.1]} 2. c4 {[%clk 0:03:00.3]}
2... e6 {[%clk 0:02:57.1]} 3. Nf3 {[%clk 0:02:59.1]} 3... Bb4+ {[%clk
0:02:52.8]} 4. Bd2 {[%clk 0:02:57.9]} 4... Be7 {[%clk 0:02:49.6]} 5. g3 {[%clk
0:02:57.2]} 5... b6 {[%clk 0:02:48]} 6. Bg2 {[%clk 0:02:56.8]} 6... Bb7 {[%clk
0:02:47.5]} 7. O-O {[%clk 0:02:55.1]} 7... d5 {[%clk 0:02:46.9]} 8. b3 {[%clk
0:02:52.4]} 8... Nbd7 {[%clk 0:02:45.3]} 9. Qc2 {[%clk 0:02:50.2]} 9... O-O
{[%clk 0:02:33.9]} 10. Nc3 {[%clk 0:02:48]} 10... c5 {[%clk 0:02:30]} 11. cxd5
{[%clk 0:02:40.3]} 11... exd5 {[%clk 0:02:25.7]} 12. e3 {[%clk 0:02:32.8]} 12...
Rc8 {[%clk 0:02:23]} 13. Qb2 {[%clk 0:02:31.9]} 13... Ne4 {[%clk 0:02:17.6]} 14.
Nxe4 {[%clk 0:02:16.8]} 14... dxe4 {[%clk 0:02:15.7]} 15. Ne5 {[%clk 0:02:14.9]}
15... Nxe5 {[%clk 0:02:09.8]} 16. dxe5 {[%clk 0:02:15.8]} 16... Qc7 {[%clk
0:02:03.7]} 17. Rfd1 {[%clk 0:02:08.8]} 17... Rfd8 {[%clk 0:02:00.4]} 18. Bc3
{[%clk 0:02:08.5]} 18... g6 {[%clk 0:01:53]} 19. h4 {[%clk 0:02:07.6]} 19... Rd3
{[%clk 0:01:47.1]} 20. Bf1 {[%clk 0:01:59]} 20... Rxd1 {[%clk 0:01:40.9]} 21.
Rxd1 {[%clk 0:01:58]} 21... Rd8 {[%clk 0:01:39]} 22. Rxd8+ {[%clk 0:01:48.8]}
22... Bxd8 {[%clk 0:01:37.3]} 23. Qc2 {[%clk 0:01:47]} 23... Bd5 {[%clk
0:01:33.5]} 24. Kg2 {[%clk 0:01:34.3]} 24... Qc6 {[%clk 0:01:29.7]} 25. Qd2
{[%clk 0:01:28.8]} 25... Be7 {[%clk 0:01:26.3]} 26. Bc4 {[%clk 0:01:23]} 26...
Bxc4 {[%clk 0:01:22.3]} 27. bxc4 {[%clk 0:01:23.9]} 27... a6 {[%clk 0:01:21]}
28. Qd5 {[%clk 0:01:14.9]} 28... Qa4 {[%clk 0:01:15.1]} 29. e6 {[%clk
0:01:10.8]} 29... f6 {[%clk 0:01:06.9]} 30. Qa8+ {[%clk 0:01:02.1]} 30... Kg7
{[%clk 0:01:01.3]} 31. Qxe4 {[%clk 0:01:01]} 31... Qxa2 {[%clk 0:00:57.1]} 32.
g4 {[%clk 0:00:57.2]} 32... b5 {[%clk 0:00:52.1]} 33. g5 {[%clk 0:00:49.9]}
33... Qxc4 {[%clk 0:00:49.6]} 34. gxf6+ {[%clk 0:00:45.1]} 34... Bxf6 {[%clk
0:00:36]} 35. Qxc4 {[%clk 0:00:43.1]} 35... bxc4 {[%clk 0:00:34.3]} 36. e7
{[%clk 0:00:41.4]} 36... Kf7 {[%clk 0:00:30.5]} 37. Bxf6 {[%clk 0:00:40.3]}
37... a5 {[%clk 0:00:29.7]} 38. Kf1 {[%clk 0:00:26.1]} 38... a4 {[%clk
0:00:27.8]} 39. Bb2 {[%clk 0:00:25.5]} 39... Kxe7 {[%clk 0:00:25.6]} 40. Ke2
{[%clk 0:00:21.2]} 40... Kd6 {[%clk 0:00:18.6]} 41. Kd2 {[%clk 0:00:20]} 41...
Kc6 {[%clk 0:00:18.2]} 42. Kc3 {[%clk 0:00:19.6]} 42... Kd5 {[%clk 0:00:17.7]}
43. f3 {[%clk 0:00:19.1]} 43... h5 {[%clk 0:00:16.1]} 44. Ba3 {[%clk 0:00:18.6]}
44... Kd6 {[%clk 0:00:12.9]} 45. Kxc4 {[%clk 0:00:18.4]} 45... Kc6 {[%clk
0:00:13.8]} 46. Bxc5 {[%clk 0:00:17.8]} 46... a3 {[%clk 0:00:12.1]} 47. Bxa3
{[%clk 0:00:17.4]} 47... Kb6 {[%clk 0:00:13]} 48. f4 {[%clk 0:00:17.5]} 48...
Kc6 {[%clk 0:00:13.3]} 49. Kd4 {[%clk 0:00:17.5]} 49... Kd7 {[%clk 0:00:12.3]}
50. Ke5 {[%clk 0:00:17.7]} 50... Ke8 {[%clk 0:00:12]} 51. Kf6 {[%clk 0:00:17.9]}
51... Kd7 {[%clk 0:00:09.2]} 52. Kxg6 {[%clk 0:00:18.1]} 52... Ke6 {[%clk
0:00:07.9]} 53. Kxh5 {[%clk 0:00:18.5]} 53... Kf5 {[%clk 0:00:06.8]} 1-0

[Event "*** SCC Grand Prix: Titled Tuesday Blitz"]
[Site "Chess.com"]
[Date "2020.08.11"]
[Round "2"]
[White "Durarbayli"]
[Black "suyu28"]
[Result "1-0"]
[WhiteElo "2858"]
[BlackElo "2567"]
[TimeControl "180+1"]
[EndTime "10:19:35 PDT"]
[Termination "Durarbayli won by checkmate"]

1. e4 {[%clk 0:03:00.9]} 1... c6 {[%clk 0:02:58.1]} 2. Nf3 {[%clk 0:03:00.1]}
2... d5 {[%clk 0:02:57.7]} 3. Nc3 {[%clk 0:03:01]} 3... g6 {[%clk 0:02:58.2]} 4.
d4 {[%clk 0:02:55]} 4... dxe4 {[%clk 0:02:57.1]} 5. Nxe4 {[%clk 0:02:55]} 5...
Bg7 {[%clk 0:02:58]} 6. Bc4 {[%clk 0:02:50.9]} 6... Nf6 {[%clk 0:02:57.4]} 7.
Nxf6+ {[%clk 0:02:41.9]} 7... exf6 {[%clk 0:02:58.3]} 8. Qe2+ {[%clk 0:02:41.4]}
8... Qe7 {[%clk 0:02:57.9]} 9. Qxe7+ {[%clk 0:02:40.4]} 9... Kxe7 {[%clk
0:02:58.8]} 10. Bf4 {[%clk 0:02:36.1]} 10... Be6 {[%clk 0:02:56.2]} 11. Bb3
{[%clk 0:02:29.5]} 11... Nd7 {[%clk 0:02:51.5]} 12. O-O-O {[%clk 0:02:28.1]}
12... Nb6 {[%clk 0:02:44.5]} 13. Rhe1 {[%clk 0:02:27.2]} 13... Kd7 {[%clk
0:02:44.3]} 14. Nd2 {[%clk 0:02:13.5]} 14... f5 {[%clk 0:02:26.9]} 15. Bxe6+
{[%clk 0:01:48]} 15... fxe6 {[%clk 0:02:26.9]} 16. Nb3 {[%clk 0:01:48.9]} 16...
Rae8 {[%clk 0:02:02.6]} 17. Nc5+ {[%clk 0:01:47.3]} 17... Kc8 {[%clk 0:02:03.5]}
18. Nxe6 {[%clk 0:01:45.6]} 18... Bf6 {[%clk 0:02:02.1]} 19. c3 {[%clk 0:01:15]}
19... Nd5 {[%clk 0:01:58.5]} 20. Bd2 {[%clk 0:01:14.6]} 20... b6 {[%clk
0:01:54.1]} 21. Nf4 {[%clk 0:01:04]} 21... Kd7 {[%clk 0:01:50.9]} 22. Nd3 {[%clk
0:00:57.8]} 22... Re4 {[%clk 0:01:45.6]} 23. f3 {[%clk 0:00:57.5]} 23... Rxe1
{[%clk 0:01:45.1]} 24. Rxe1 {[%clk 0:00:58.4]} 24... Rc8 {[%clk 0:01:33.7]} 25.
Ne5+ {[%clk 0:00:50.6]} 25... Bxe5 {[%clk 0:01:33.6]} 26. Rxe5 {[%clk
0:00:51.5]} 26... b5 {[%clk 0:01:32.2]} 27. Kc2 {[%clk 0:00:51.2]} 27... a5
{[%clk 0:01:32]} 28. b3 {[%clk 0:00:45.3]} 28... Nb6 {[%clk 0:01:31]} 29. Kd3
{[%clk 0:00:44.1]} 29... a4 {[%clk 0:01:30.6]} 30. c4 {[%clk 0:00:41.9]} 30...
axb3 {[%clk 0:01:30.5]} 31. axb3 {[%clk 0:00:42.8]} 31... bxc4+ {[%clk
0:01:30.8]} 32. bxc4 {[%clk 0:00:43.7]} 32... Ra8 {[%clk 0:01:31.4]} 33. Bb4
{[%clk 0:00:43.2]} 33... Ra2 {[%clk 0:01:28.1]} 34. Re7+ {[%clk 0:00:42.5]}
34... Kc8 {[%clk 0:01:28]} 35. Rxh7 {[%clk 0:00:40.8]} 35... Rxg2 {[%clk
0:01:27.8]} 36. Bd6 {[%clk 0:00:36.9]} 36... Na4 {[%clk 0:01:23.2]} 37. Rc7+
{[%clk 0:00:31.7]} 37... Kd8 {[%clk 0:01:23.3]} 38. Rxc6 {[%clk 0:00:31.7]}
38... Nb2+ {[%clk 0:01:23.7]} 39. Kc3 {[%clk 0:00:24.8]} 39... Nd1+ {[%clk
0:01:23.3]} 40. Kb4 {[%clk 0:00:24.7]} 40... Kd7 {[%clk 0:01:20.6]} 41. d5
{[%clk 0:00:24.6]} 41... Rb2+ {[%clk 0:01:18.7]} 42. Kc5 {[%clk 0:00:23.1]}
42... Nf2 {[%clk 0:01:16.8]} 43. Bg3 {[%clk 0:00:18.5]} 43... Nd3+ {[%clk
0:01:14.4]} 44. Kd4 {[%clk 0:00:18.8]} 44... Nb4 {[%clk 0:01:09]} 45. Rd6+
{[%clk 0:00:18.9]} 45... Ke8 {[%clk 0:01:08.1]} 46. Rxg6 {[%clk 0:00:19.8]}
46... Rb1 {[%clk 0:01:06.3]} 47. h4 {[%clk 0:00:17.7]} 47... Nc2+ {[%clk
0:01:04.7]} 48. Ke5 {[%clk 0:00:17.3]} 48... Re1+ {[%clk 0:01:02.9]} 49. Kxf5
{[%clk 0:00:16.1]} 49... Ne3+ {[%clk 0:01:02.5]} 50. Kf6 {[%clk 0:00:14]} 50...
Nxc4 {[%clk 0:00:59.4]} 51. h5 {[%clk 0:00:13.5]} 51... Ne3 {[%clk 0:00:57.1]}
52. Bxe1 {[%clk 0:00:13.1]} 52... Nxd5+ {[%clk 0:00:55.6]} 53. Kg5 {[%clk
0:00:12.6]} 53... Kf7 {[%clk 0:00:54.3]} 54. Bg3 {[%clk 0:00:10.8]} 54... Ne7
{[%clk 0:00:54.1]} 55. Be5 {[%clk 0:00:10.6]} 55... Nd5 {[%clk 0:00:54.3]} 56.
f4 {[%clk 0:00:10.7]} 56... Ne3 {[%clk 0:00:53.8]} 57. f5 {[%clk 0:00:10.4]}
57... Kf8 {[%clk 0:00:54.1]} 58. h6 {[%clk 0:00:10.7]} 58... Kf7 {[%clk
0:00:54.1]} 59. Rg7+ {[%clk 0:00:11]} 59... Kf8 {[%clk 0:00:53.9]} 60. h7 {[%clk
0:00:11.6]} 60... Nxf5 {[%clk 0:00:54.5]} 61. h8=Q# {[%clk 0:00:11.5]} 1-0